lending/lending_fUSD_20240824
["ID","MTS","AMOUNT","RATE_DAILY","PERIOD"]
[335795274,1724494251751,-527.66938403,0.00016999,5]
[335795275,1724494251760,-236.59179537,0.00016999,5]
[335795276,1724494251769,-500.0,0.00016999,5]
[335795277,1724494251779,-500.0,0.00016999,5]
[335795278,1724494251788,-678.84,0.00016999,5]
[335795279,1724494251797,-546.31169112,0.00016999,5]
[335795280,1724494251806,-500.0,0.00016999,5]
[335795281,1724494251815,-500.0,0.00016999,5]
[335795282,1724494251824,-500.0,0.00016999,5]
[335795283,1724494251833,-500.0,0.00016999,5]
[335795284,1724494251842,-150.44579378,0.00016999,5]
[335795285,1724494251851,-627.2,0.00016999,5]
[335795286,1724494251860,-500.0,0.00016999,5]
[335795287,1724494251870,-500.0,0.00016999,5]
[335795288,1724494251879,-500.0,0.00016999,5]
[335795289,1724494251888,-500.0,0.00016999,5]
[335795290,1724494251898,-500.0,0.00016999,5]
[335795291,1724494251909,-500.0,0.00016999,2]
[335795292,1724494251918,-500.0,0.00016999,5]
[335795293,1724494251927,-350.45505662,0.00016999,5]
[335795294,1724494251936,-500.0,0.00016999,5]
[335795295,1724494251946,-500.0,0.00016999,5]
[335795296,1724494251955,-824.92,0.00016999,5]
[335795297,1724494251964,-778.68,0.00016999,5]
[335795298,1724494251974,-500.0,0.00016999,5]
[335795299,1724494251983,-500.0,0.00016999,5]
[335795300,1724494251992,-500.0,0.00016999,5]
[335795301,1724494252001,-500.0,0.00016999,5]
[335795302,1724494252010,-362.32706982,0.00016999,5]
[335795303,1724494252019,-561.26,0.00016999,5]
[335795304,1724494252028,-500.0,0.00016999,5]
[335795305,1724494252037,-584.84,0.00016999,5]
[335795306,1724494252047,-500.0,0.00016999,5]
[335795307,1724494252057,-241.72,0.00016999,5]
[335795308,1724494252067,-500.0,0.00016999,5]
[335795309,1724494252076,-500.0,0.00016999,5]
[335795310,1724494252085,-500.0,0.00016999,5]
[335795311,1724494252095,-500.0,0.00016999,5]
[335795312,1724494252105,-1207.62,0.00016999,5]
[335795313,1724494252115,-500.0,0.00016999,5]
[335795314,1724494252124,-561.51,0.00016999,5]
[335795315,1724494252133,-500.0,0.00016999,5]
[335795316,1724494252143,-279.9129088,0.00016999,5]
[335795317,1724494252151,-500.0,0.00016999,5]
[335795318,1724494252160,-500.0,0.00016999,5]
[335795319,1724494252169,-500.0,0.00016999,5]
[335795320,1724494252179,-500.0,0.00016999,5]
[335795321,1724494252189,-500.0,0.00016999,5]
[335795322,1724494252198,-500.0,0.00016999,5]
[335795323,1724494252207,-1017.08,0.00016999,5]
[335795324,1724494252217,-500.0,0.00016999,5]
[335795325,1724494252226,-500.0,0.00016999,5]
[335795326,1724494252235,-500.0,0.00016999,5]
[335795327,1724494252245,-500.0,0.00016999,5]
[335795328,1724494252254,-500.0,0.00016999,5]
[335795329,1724494252263,-556.07,0.00016999,5]
[335795330,1724494252272,-500.0,0.00016999,5]
[335795331,1724494252281,-500.0,0.00016999,5]
[335795332,1724494252290,-800.0,0.00017,2]
[335795333,1724494252299,-5000.0,0.00017,2]
[335795334,1724494252308,-5000.0,0.00017,2]
[335795335,1724494252318,-500.0,0.00017098,5]
[335795336,1724494252327,-500.0,0.00017098,5]
[335795337,1724494252336,-500.0,0.00017098,5]
[335795338,1724494252345,-855.69,0.00017098,5]
[335795339,1724494252355,-1832.78,0.00017098,5]
[335795340,1724494252366,-20151.54199071,0.00017099,2]
[335795341,1724494252375,-167.0,0.00017125,2]
[335795342,1724494252384,-500.0,0.00017356,2]
[335795343,1724494252393,-500.0,0.0001763,2]
[335795344,1724494252402,-167.0,0.00017656,2]
[335795346,1724494252493,-219.56,0.000178,30]
[335795347,1724494252510,-1462.0,0.000178,2]
[335795348,1724494252519,-162.72061764,0.00017899,2]
[335795349,1724494252528,-245.0,0.000179,5]
[335795350,1724494252537,-800.0,0.00017904,2]
[335795351,1724494252546,-900.0,0.00017904,2]
[335795352,1724494252556,-2258.0,0.00017917,2]
[335795353,1724494252565,-500.0,0.00017978,5]
[335795354,1724494252576,-519.13203127,0.00017978,5]
[335795355,1724494252585,-1033.97,0.00017978,5]
[335795356,1724494252595,-500.0,0.00017978,5]
[335795357,1724494252607,-500.0,0.00017978,5]
[335795358,1724494252618,-500.0,0.00017978,5]
[335795359,1724494252627,-196.09250517,0.00017978,5]
[335795360,1724494252636,-3234.1,0.00017978,5]
[335795361,1724494252646,-500.0,0.00017978,5]
[335795362,1724494252657,-488.48,0.00017978,5]
[335795363,1724494252667,-500.0,0.00017978,5]
[335795364,1724494252677,-500.0,0.00017978,5]
[335795365,1724494252686,-500.0,0.00017978,5]
[335795366,1724494252695,-1303.39,0.00017978,5]
[335795367,1724494252704,-500.0,0.00017978,5]
[335795368,1724494252714,-724.73,0.00017978,5]
[335795369,1724494252726,-500.0,0.00017978,5]
[335795370,1724494252736,-574.95,0.00017978,5]
[335795371,1724494252745,-500.0,0.00017978,5]
[335795372,1724494252754,-500.0,0.00017978,5]
[335795373,1724494252763,-500.0,0.00017978,5]
[335795374,1724494252772,-500.0,0.00017978,5]
[335795375,1724494252782,-500.0,0.00017978,5]
[335795376,1724494252791,-500.0,0.00017978,5]
[335795377,1724494252800,-2913.14,0.00017978,5]
[335795378,1724494252809,-676.4,0.00017978,5]
[335795379,1724494252818,-546.05134913,0.00017979,5]
[335795380,1724494252827,-500.0,0.00017979,5]
[335795381,1724494252837,-155.81161108,0.00017979,5]
[335795382,1724494252846,-500.0,0.00017979,5]
[335795383,1724494252855,-500.0,0.00017979,5]
[335795384,1724494252865,-500.0,0.00017979,5]
[335795385,1724494252874,-500.0,0.00017979,5]
[335795386,1724494252883,-500.0,0.00017979,5]
[335795387,1724494252892,-622.22602165,0.00017979,5]
[335795388,1724494252901,-500.0,0.00017979,5]
[335795389,1724494252910,-542.95234785,0.00017979,5]
[335795390,1724494252920,-277.69831087,0.00017979,5]
[335795391,1724494252929,-500.0,0.00017979,5]
[335795392,1724494252938,-500.0,0.00017979,5]
[335795393,1724494252947,-539.07742563,0.00017979,5]
[335795394,1724494252956,-500.0,0.00017979,5]
[335795395,1724494252965,-500.0,0.00017979,5]
[335795396,1724494252974,-500.0,0.00017979,5]
[335795397,1724494252984,-353.12605311,0.00017979,5]
[335795398,1724494252993,-500.0,0.00017979,5]
[335795399,1724494253002,-622.67,0.00017979,5]
[335795400,1724494253011,-339.72017653,0.00017979,5]
[335795401,1724494253021,-790.0,0.00017979,5]
[335795402,1724494253030,-500.0,0.00017979,5]
[335795403,1724494253039,-690.27,0.00017979,5]
[335795404,1724494253048,-500.0,0.00017979,5]
[335795405,1724494253057,-500.0,0.00017979,5]
[335795406,1724494253066,-413.3316342,0.00017979,5]
[335795407,1724494253076,-500.0,0.00017979,5]
[335795408,1724494253085,-500.0,0.00017979,5]
[335795409,1724494253095,-500.0,0.00017979,5]
[335795410,1724494253104,-1562.67,0.00017979,5]
[335795411,1724494253114,-500.0,0.00017979,5]
[335795412,1724494253123,-205.28,0.00017979,5]
[335795413,1724494253132,-500.0,0.00017979,5]
[335795414,1724494253142,-500.0,0.00017979,5]
[335795415,1724494253153,-500.0,0.00017979,5]
[335795416,1724494253162,-504.43,0.00017979,5]
[335795417,1724494253172,-544.4,0.00017979,5]
[335795418,1724494253181,-500.0,0.00017979,5]
[335795419,1724494253191,-500.0,0.00017979,5]
[335795420,1724494253200,-900.04,0.00017979,5]
[335795421,1724494253209,-152.0,0.0001798,3]
[335795422,1724494253218,-2000.0,0.00018,2]
[335795423,1724494253228,-500.0,0.00018,2]
[335795424,1724494253237,-500.0,0.00018,2]
[335795425,1724494253247,-500.0,0.00018,2]
[335795426,1724494253257,-500.0,0.00018,2]
[335795427,1724494253266,-500.0,0.00018,2]
[335795428,1724494253276,-500.0,0.00018,2]
[335795429,1724494253286,-500.0,0.00018,2]
[335795430,1724494253295,-500.0,0.00018,2]
[335795431,1724494253304,-500.0,0.00018,2]
[335795432,1724494253313,-500.0,0.00018,2]
[335795433,1724494253322,-500.0,0.00018,2]
[335795434,1724494253331,-500.0,0.00018,2]
[335795435,1724494253340,-500.0,0.00018,2]
[335795436,1724494253350,-500.0,0.00018,2]
[335795437,1724494253359,-500.0,0.00018,2]
[335795438,1724494253371,-500.0,0.00018,2]
[335795439,1724494253380,-500.0,0.00018,2]
[335795440,1724494253389,-500.0,0.00018,2]
[335795441,1724494253398,-500.0,0.00018,2]
[335795442,1724494253407,-500.0,0.00018,2]
[335795443,1724494253416,-500.0,0.00018,2]
[335795444,1724494253425,-500.0,0.00018,2]
[335795445,1724494253435,-500.0,0.00018,2]
[335795446,1724494253445,-500.0,0.00018,2]
[335795447,1724494253455,-500.0,0.00018,2]
[335795448,1724494253464,-500.0,0.00018,2]
[335795449,1724494253474,-500.0,0.00018,2]
[335795450,1724494253483,-500.0,0.00018,2]
[335795451,1724494253492,-496.0,0.00018,2]
[335795452,1724494253502,-197.41,0.00018,2]
[335795453,1724494253511,-314.84,0.00018,2]
[335795454,1724494253520,-1000.48,0.00018,2]
[335795455,1724494253530,-150.000001,0.00018,2]
[335795456,1724494253539,-436.31,0.00018127,2]
[335795457,1724494253548,-167.0,0.00018186,2]
[335795458,1724494253558,-500.0,0.00018202,2]
[335795459,1724494253569,-155.71,0.00018372,2]
[335795460,1724494253579,-500.0,0.00018381,2]
[335795461,1724494253589,-245.0,0.000184,6]
[335795462,1724494253601,-500.0,0.00018452,2]
[335795463,1724494253610,-170.32,0.00018493,2]
[335795464,1724494253620,-1500.0,0.000185,2]
[335795465,1724494253629,-7949.42,0.00018533,2]
[335795466,1724494253638,-152.0,0.00018583,4]
[335795467,1724494253651,-20151.54199071,0.00018659,2]
[335795468,1724494253660,-167.0,0.00018716,2]
[335795469,1724494253669,-333.18729677,0.00018799,2]
[335795470,1724494253680,-2500.0,0.00018869,5]
[335795471,1724494253690,-1674.0,0.00018885,2]
[335795472,1724494253699,-186.6480781,0.00018899,2]
[335795473,1724494253709,-245.0,0.000189,6]
[335795474,1724494253718,-500.0,0.00018929,2]
[335795475,1724494253729,-500.0,0.00018973,2]
[335795476,1724494253739,-431.93927146,0.00018976,5]
[335795477,1724494253749,-500.0,0.00018976,5]
[335795478,1724494253758,-500.0,0.00018976,5]
[335795479,1724494253768,-634.82062851,0.00018976,5]
[335795480,1724494253777,-500.0,0.00018976,5]
[335795481,1724494253786,-500.0,0.00018976,5]
[335795482,1724494253795,-500.0,0.00018976,5]
[335795483,1724494253805,-500.0,0.00018976,5]
[335795484,1724494253814,-500.0,0.00018976,5]
[335795485,1724494253823,-480.60460023,0.00018976,5]
[335795486,1724494253832,-507.09103228,0.00018976,5]
[335795487,1724494253841,-500.0,0.00018976,5]
[335795488,1724494253851,-500.0,0.00018976,5]
[335795489,1724494253860,-461.66998009,0.00018976,5]
[335795490,1724494253875,-500.0,0.00018976,5]
[335795491,1724494253884,-731.76,0.00018976,5]
[335795492,1724494253893,-150.0,0.00018976,5]
[335795493,1724494253903,-500.0,0.00018976,5]
[335795494,1724494253914,-500.0,0.00018976,5]
[335795495,1724494253924,-500.0,0.00018976,5]
[335795496,1724494253933,-500.0,0.00018976,5]
[335795497,1724494253942,-500.0,0.00018976,5]
[335795498,1724494253951,-517.62,0.00018976,5]
[335795499,1724494253960,-509.1947676,0.00018976,5]
[335795500,1724494253969,-500.0,0.00018976,5]
[335795501,1724494253978,-514.54728994,0.00018976,5]
[335795502,1724494253988,-500.0,0.00018976,5]
[335795503,1724494253997,-989.38,0.00018976,5]
[335795504,1724494254008,-970.92,0.00018976,5]
[335795505,1724494254018,-518.20731037,0.00018976,5]
[335795506,1724494254028,-500.0,0.00018976,5]
[335795507,1724494254038,-500.0,0.00018976,5]
[335795508,1724494254047,-678.84,0.00018976,5]
[335795509,1724494254056,-500.0,0.00018976,5]
[335795510,1724494254065,-504.32957825,0.00018976,5]
[335795511,1724494254074,-500.0,0.00018976,5]
[335795512,1724494254175,-500.0,0.00018976,5]
[335795513,1724494254186,-627.2,0.00018976,5]
[335795514,1724494254195,-500.0,0.00018976,5]
[335795515,1724494254204,-500.0,0.00018976,5]
[335795516,1724494254214,-500.0,0.00018976,5]
[335795517,1724494254224,-500.0,0.00018976,5]
[335795518,1724494254237,-500.0,0.00018976,5]
[335795519,1724494254246,-500.0,0.00018976,5]
[335795520,1724494254256,-500.0,0.00018976,5]
[335795521,1724494254265,-500.0,0.00018976,5]
[335795522,1724494254274,-824.92,0.00018976,5]
[335795523,1724494254284,-778.68,0.00018976,5]
[335795524,1724494254293,-500.0,0.00018976,5]
[335795525,1724494254303,-500.0,0.00018976,5]
[335795526,1724494254312,-500.0,0.00018976,5]
[335795527,1724494254321,-500.0,0.00018976,5]
[335795528,1724494254331,-561.26,0.00018976,5]
[335795529,1724494254340,-153.63783852,0.00018976,5]
[335795530,1724494254349,-584.84,0.00018976,5]
[335795531,1724494254359,-500.0,0.00018976,5]
[335795532,1724494254369,-500.0,0.00018976,5]
[335795533,1724494254378,-500.0,0.00018976,5]
[335795534,1724494254388,-500.0,0.00018976,5]
[335795535,1724494254397,-500.0,0.00018976,5]
[335795536,1724494254407,-1207.62,0.00018976,5]
[335795537,1724494254416,-500.0,0.00018976,5]
[335795538,1724494254426,-561.51,0.00018976,5]
[335795539,1724494254435,-500.0,0.00018976,5]
[335795540,1724494254445,-500.0,0.00018976,5]
[335795541,1724494254455,-500.0,0.00018976,5]
[335795543,1724494254464,-500.0,0.00018976,5]
[335795544,1724494254474,-500.0,0.00018976,5]
[335795545,1724494254483,-500.0,0.00018976,5]
[335795546,1724494254493,-227.64550221,0.00018976,5]
[335795547,1724494254502,-1017.08,0.00018976,5]
[335795548,1724494254511,-500.0,0.00018976,5]
[335795549,1724494254520,-500.0,0.00018976,5]
[335795550,1724494254530,-500.0,0.00018976,5]
[335795551,1724494254539,-557.52638234,0.00018976,5]
[335795552,1724494254548,-500.0,0.00018976,5]
[335795553,1724494254558,-556.07,0.00018976,5]
[335795554,1724494254567,-500.0,0.00018976,5]
[335795555,1724494254576,-637.17152669,0.00018976,5]
[335795556,1724494254585,-259.52822652,0.00018977,5]
[335795557,1724494254595,-500.0,0.00018977,5]
[335795558,1724494254604,-500.0,0.00018977,5]
[335795559,1724494254613,-1562.67,0.00018977,5]
[335795560,1724494254623,-500.0,0.00018977,5]
[335795561,1724494254632,-319.05281036,0.00018977,5]
[335795562,1724494254641,-500.0,0.00018977,5]
[335795563,1724494254655,-500.0,0.00018977,5]
[335795564,1724494254665,-504.43,0.00018977,5]
[335795565,1724494254675,-544.4,0.00018977,5]
[335795566,1724494254685,-500.0,0.00018977,5]
[335795567,1724494254695,-500.0,0.00018977,5]
[335795568,1724494254705,-900.04,0.00018977,5]
[335795569,1724494254714,-500.0,0.00018978,5]
[335795570,1724494254725,-1033.97,0.00018978,5]
[335795571,1724494254734,-500.0,0.00018978,5]
[335795572,1724494254743,-500.0,0.00018978,5]
[335795573,1724494254753,-500.0,0.00018978,5]
[335795574,1724494254762,-724.73,0.00018978,5]
[335795575,1724494254772,-441.9,0.00018986,5]
[335795576,1724494254782,-739.15,0.00018986,5]
[335795577,1724494254791,-500.0,0.00018986,5]
[335795578,1724494254801,-500.0,0.00018986,5]
[335795579,1724494254810,-612.48,0.00018986,5]
[335795580,1724494254819,-500.0,0.00018986,5]
[335795581,1724494254830,-855.69,0.00018986,5]
[335795582,1724494254839,-16560.06,0.00018986,5]
[335795583,1724494254849,-1832.78,0.00018986,5]
[335795584,1724494254857,-3234.1,0.00018987,5]
[335795585,1724494254870,-159.65990281,0.00018987,5]
[335795586,1724494254880,-500.0,0.00018987,5]
[335795587,1724494254889,-500.0,0.00018987,5]
[335795588,1724494254899,-500.0,0.00018987,5]
[335795589,1724494254919,-1303.39,0.00018987,5]
[335795590,1724494254936,-500.0,0.00018987,5]
[335795591,1724494254953,-500.0,0.00018987,5]
[335795592,1724494254971,-574.95,0.00018987,5]
[335795593,1724494254989,-500.0,0.00018987,5]
[335795594,1724494255005,-500.0,0.00018987,5]
[335795595,1724494255020,-500.0,0.00018987,5]
[335795596,1724494255038,-500.0,0.00018987,5]
[335795597,1724494255052,-500.0,0.00018987,5]
[335795598,1724494255065,-500.0,0.00018987,5]
[335795599,1724494255082,-2913.14,0.00018987,5]
[335795600,1724494255099,-676.4,0.00018987,5]
[335795601,1724494255116,-8381.92048607,0.00018988,2]
[335795602,1724494255128,-503.97721125,0.00018988,5]
[335795603,1724494255143,-500.0,0.00018988,5]
[335795604,1724494255160,-500.0,0.00018988,5]
[335795605,1724494255176,-500.0,0.00018988,5]
[335795606,1724494255191,-588.58246897,0.00018988,5]
[335795607,1724494255204,-523.05136327,0.00018988,5]
[335795608,1724494255219,-500.0,0.00018988,5]
[335795609,1724494255233,-500.76753784,0.00018988,5]
[335795610,1724494255247,-580.79268874,0.00018988,5]
[335795611,1724494255261,-500.0,0.00018988,5]
[335795612,1724494255274,-500.0,0.00018988,5]
[335795613,1724494255288,-500.0,0.00018988,5]
[335795614,1724494255302,-500.0,0.00018988,5]
[335795615,1724494255315,-500.0,0.00018988,5]
[335795616,1724494255328,-500.0,0.00018988,5]
[335795617,1724494255341,-500.0,0.00018988,5]
[335795618,1724494255355,-500.0,0.00018988,5]
[335795619,1724494255369,-304.35785438,0.00018988,5]
[335795620,1724494255383,-500.0,0.00018988,5]
[335795621,1724494255397,-500.0,0.00018988,5]
[335795622,1724494255411,-500.0,0.00018988,5]
[335795623,1724494255424,-195.93658205,0.00018988,5]
[335795624,1724494255439,-1033.97,0.00018988,5]
[335795625,1724494255452,-274.9451811,0.00018988,5]
[335795626,1724494255466,-500.0,0.00018988,5]
[335795627,1724494255479,-500.0,0.00018988,5]
[335795628,1724494255494,-500.0,0.00018988,5]
[335795629,1724494255508,-500.0,0.00018988,5]
[335795630,1724494255522,-249.78352862,0.00018988,5]
[335795631,1724494255536,-500.0,0.00018988,5]
[335795632,1724494255550,-435.78716904,0.00018988,5]
[335795633,1724494255564,-500.0,0.00018988,5]
[335795634,1724494255579,-500.0,0.00018988,5]
[335795635,1724494255593,-500.0,0.00018988,5]
[335795636,1724494255606,-500.0,0.00018988,5]
[335795637,1724494255620,-500.0,0.00018988,5]
[335795638,1724494255634,-731.76,0.00018988,5]
[335795639,1724494255651,-731.76,0.00018988,5]
[335795640,1724494255665,-150.0,0.00018988,5]
[335795641,1724494255679,-285.30186188,0.00018988,5]
[335795642,1724494255692,-500.0,0.00018988,5]
[335795643,1724494255706,-500.0,0.00018988,5]
[335795644,1724494255720,-500.0,0.00018988,5]
[335795645,1724494255736,-500.0,0.00018988,5]
[335795646,1724494255750,-252.78628587,0.00018988,5]
[335795647,1724494255764,-500.0,0.00018988,5]
[335795648,1724494255778,-500.0,0.00018988,5]
[335795649,1724494255789,-500.0,0.00018988,5]
[335795650,1724494255799,-500.0,0.00018988,5]
[335795651,1724494255809,-500.0,0.00018988,5]
[335795652,1724494255818,-500.0,0.00018988,5]
[335795653,1724494255827,-500.0,0.00018988,5]
[335795654,1724494255837,-517.62,0.00018988,5]
[335795655,1724494255846,-517.62,0.00018988,5]
[335795656,1724494255856,-500.0,0.00018988,5]
[335795657,1724494255867,-500.0,0.00018988,5]
[335795658,1724494255876,-500.0,0.00018988,5]
[335795659,1724494255886,-500.0,0.00018988,5]
[335795660,1724494255896,-989.38,0.00018988,5]
[335795661,1724494255909,-989.38,0.00018988,5]
[335795662,1724494255919,-970.92,0.00018988,5]
[335795663,1724494255929,-970.92,0.00018988,5]
[335795664,1724494255939,-500.0,0.00018988,5]
[335795665,1724494256151,-500.0,0.00018988,5]
[335795666,1724494256163,-500.0,0.00018988,5]
[335795667,1724494256173,-500.0,0.00018988,5]
[335795668,1724494256184,-678.84,0.00018988,5]
[335795669,1724494256193,-678.84,0.00018988,5]
[335795670,1724494256203,-500.0,0.00018988,5]
[335795671,1724494256212,-500.0,0.00018988,5]
[335795672,1724494256222,-500.0,0.00018988,5]
[335795673,1724494256231,-500.0,0.00018988,5]
[335795674,1724494256240,-500.0,0.00018988,5]
[335795675,1724494256250,-500.0,0.00018988,5]
[335795676,1724494256262,-500.0,0.00018988,5]
[335795677,1724494256272,-335.12037108,0.00018988,5]
[335795678,1724494256282,-627.2,0.00018988,5]
[335795679,1724494256291,-627.2,0.00018988,5]
[335795680,1724494256301,-500.0,0.00018988,5]
[335795681,1724494256312,-500.0,0.00018988,5]
[335795682,1724494256321,-500.0,0.00018988,5]
[335795683,1724494256330,-500.0,0.00018988,5]
[335795684,1724494256341,-469.44,0.00018988,5]
[335795685,1724494256351,-500.0,0.00018988,5]
[335795686,1724494256362,-500.0,0.00018988,5]
[335795687,1724494256372,-560.72150392,0.00018988,5]
[335795688,1724494256381,-500.0,0.00018988,5]
[335795689,1724494256390,-542.40568226,0.00018988,5]
[335795690,1724494256400,-500.0,0.00018988,5]
[335795691,1724494256409,-500.0,0.00018988,5]
[335795692,1724494256418,-500.0,0.00018988,5]
[335795693,1724494256427,-1788.4,0.00018988,5]
[335795694,1724494256436,-500.0,0.00018988,5]
[335795695,1724494256445,-500.0,0.00018988,5]
[335795696,1724494256455,-500.0,0.00018988,5]
[335795697,1724494256464,-500.0,0.00018988,5]
[335795698,1724494256473,-500.0,0.00018988,5]
[335795699,1724494256483,-545.18849039,0.00018988,5]
[335795700,1724494256493,-824.92,0.00018988,5]
[335795701,1724494256502,-824.92,0.00018988,5]
[335795702,1724494256511,-685.9,0.00018988,5]
[335795703,1724494256520,-3729.54,0.00018988,5]
[335795704,1724494256529,-778.68,0.00018988,5]
[335795705,1724494256538,-778.68,0.00018988,5]
[335795706,1724494256547,-500.0,0.00018988,5]
[335795707,1724494256557,-500.0,0.00018988,5]
[335795708,1724494256566,-500.0,0.00018988,5]
[335795709,1724494256575,-500.0,0.00018988,5]
[335795710,1724494256586,-510.81647606,0.00018988,5]
[335795711,1724494256595,-576.48130221,0.00018988,5]
[335795712,1724494256605,-500.0,0.00018988,5]
[335795713,1724494256614,-307.2,0.00018988,5]
[335795714,1724494256624,-500.0,0.00018988,5]
[335795715,1724494256634,-561.26,0.00018988,5]
[335795716,1724494256644,-561.26,0.00018988,5]
[335795717,1724494256656,-500.0,0.00018988,5]
[335795718,1724494256666,-500.0,0.00018988,5]
[335795719,1724494256675,-500.0,0.00018988,5]
[335795720,1724494256684,-584.84,0.00018988,5]
[335795721,1724494256694,-584.84,0.00018988,5]
[335795722,1724494256704,-500.0,0.00018988,5]
[335795723,1724494256714,-500.0,0.00018988,5]
[335795724,1724494256727,-500.0,0.00018988,5]
[335795725,1724494256737,-500.0,0.00018988,5]
[335795726,1724494256747,-500.0,0.00018988,5]
[335795727,1724494256756,-500.0,0.00018988,5]
[335795728,1724494256766,-362.11,0.00018988,5]
[335795729,1724494256775,-1562.67,0.00018988,5]
[335795730,1724494256785,-1562.67,0.00018988,5]
[335795731,1724494256795,-500.0,0.00018988,5]
[335795732,1724494256804,-500.0,0.00018988,5]
[335795733,1724494256814,-500.0,0.00018988,5]
[335795734,1724494256823,-500.0,0.00018988,5]
[335795735,1724494256833,-500.0,0.00018988,5]
[335795736,1724494256843,-230.97979081,0.00018988,5]
[335795737,1724494256852,-500.0,0.00018988,5]
[335795738,1724494256861,-500.0,0.00018988,5]
[335795739,1724494256873,-500.0,0.00018988,5]
[335795740,1724494256882,-1207.62,0.00018988,5]
[335795741,1724494256893,-1207.62,0.00018988,5]
[335795742,1724494256903,-500.0,0.00018988,5]
[335795743,1724494256912,-500.0,0.00018988,5]
[335795744,1724494256921,-291.3,0.00018988,5]
[335795745,1724494256931,-1257.4,0.00018988,5]
[335795746,1724494256940,-561.51,0.00018988,5]
[335795747,1724494256950,-561.51,0.00018988,5]
[335795748,1724494256960,-499.52345048,0.00018988,5]
[335795749,1724494256969,-500.0,0.00018988,5]
[335795750,1724494256979,-500.0,0.00018988,5]
[335795751,1724494256989,-724.73,0.00018988,5]
[335795752,1724494256998,-500.0,0.00018988,5]
[335795753,1724494257007,-500.0,0.00018988,5]
[335795754,1724494257016,-500.0,0.00018988,5]
[335795755,1724494257026,-500.0,0.00018988,5]
[335795756,1724494257036,-500.0,0.00018988,5]
[335795757,1724494257046,-500.0,0.00018988,5]
[335795758,1724494257055,-500.0,0.00018988,5]
[335795759,1724494257064,-500.0,0.00018988,5]
[335795760,1724494257074,-500.0,0.00018988,5]
[335795761,1724494257083,-500.0,0.00018988,5]
[335795762,1724494257092,-504.43,0.00018988,5]
[335795763,1724494257101,-504.43,0.00018988,5]
[335795764,1724494257111,-500.0,0.00018988,5]
[335795765,1724494257126,-500.0,0.00018988,5]
[335795766,1724494257136,-544.4,0.00018988,5]
[335795767,1724494257146,-544.4,0.00018988,5]
[335795768,1724494257155,-500.0,0.00018988,5]
[335795769,1724494257164,-625.12,0.00018988,5]
[335795770,1724494257176,-1017.08,0.00018988,5]
[335795771,1724494257186,-1017.08,0.00018988,5]
[335795772,1724494257196,-500.0,0.00018988,5]
[335795773,1724494257205,-500.0,0.00018988,5]
[335795774,1724494257214,-305.56254062,0.00018988,5]
[335795775,1724494257224,-500.0,0.00018988,5]